[Event "Germany Countries-chT Youth 2022"]
[Site "Wiesbaden"]
[Date "2022.10.03"]
[Round "5"]
[White "Musiolik, David"]
[Black "Leonard, Timo"]
[Result "1-0"]
[ECO "B12"]
[WhiteElo "2252"]
[BlackElo "2067"]
[PlyCount "81"]
[EventDate "2022.09.28"]
[EventType "team-tourn"]
[EventRounds "7"]
[EventCountry "GER"]
[TimeControl "40/5400+30:1800+30"]

1. e4 {[%emt 0:00:12]} c6 {[%emt 0:00:08]} 2. d4 {[%emt 0:00:10]} d5 {[%emt 0:00:05]} 3. e5 {[%emt 0:00:21]} c5 {[%emt 0:00:42]} 4. dxc5 {[%emt 0:00:34]} e6 {[%emt 0:00:11]} 5. a3 {[%emt 0:00:25]} Bxc5 {[%emt 0:03:08]} 6. Qg4 {[%emt 0:01:04]} g6 {[%emt 0:01:37]} 7. Nf3 {[%emt 0:03:31]} Nd7 {[%emt 0:09:33]} 8. b4 {[%emt 0:07:49]} Be7 {[%emt 0:00:49]} 9. c4 {[%emt 0:01:19]} h5 {[%emt 0:18:16]} 10. Qf4 {[%emt 0:02:10]} dxc4 {[%emt 0:01:09]} 11. Bxc4 {[%emt 0:01:04]} Nb6 {[%emt 0:02:22]} 12. O-O {[%emt 0:09:11]} Nxc4 {[%emt 0:00:49]} 13. Qxc4 {[%emt 0:00:08]} Bd7 {[%emt 0:03:09]} 14. Rd1 {[%emt 0:03:10]} Rc8 {[%emt 0:05:30]} 15. Qe2 {[%emt 0:03:58]} Qc7 {[%emt 0:14:27]} 16. Bb2 {[%emt 0:03:43]} Nh6 {[%emt 0:03:00]} 17. Nc3 {[%emt 0:05:21]} Qc4 {[%emt 0:09:24]} 18. Qd2 {[%emt 0:07:29]} Bc6 {[%emt 0:05:40]} 19. Rac1 {[%emt 0:02:37]} Rd8 {[%emt 0:03:36]} 20. Nd4 {[%emt 0:02:20]} Nf5 {[%emt 0:02:34]} 21. Ne4 {[%emt 0:09:03]} Qd5 {[%emt 0:02:04]} 22. Nxc6 {[%emt 0:07:02]} Qxd2 {[%emt 0:00:53]} 23. Rxd2 {[%emt 0:04:01]} Rxd2 {[%emt 0:00:37]} 24. Nxd2 {[%emt 0:00:06]} bxc6 {[%emt 0:00:03]} 25. Rxc6 {[%emt 0:00:19]} Kd7 {[%emt 0:01:18]} 26. Ra6 {[%emt 0:07:46]} Rc8 {[%emt 0:02:35]} 27. Rxa7+ {[%emt 0:00:22]} Kc6 {[%emt 0:04:49]} 28. Kf1 {[%emt 0:08:55]} Kb6 {[%emt 0:00:47]} 29. Rd7 {[%emt 0:00:18]} Rc2 {[%emt 0:00:30]} 30. Rd3 {[%emt 0:00:56]} Kb5 {[%emt 0:02:38]} 31. Bc3 {[%emt 0:01:06]} Bg5 {[%emt 0:01:55]} 32. Ke2 {[%emt 0:01:06]} Bxd2 {[%emt 0:00:47]} 33. Bxd2 {[%emt 0:00:02]} Kc4 {[%emt 0:00:17]} 34. a4 {[%emt 0:03:21]} Ra2 {[%emt 0:00:58]} 35. a5 {[%emt 0:00:40]} Nd4+ {[%emt 0:00:36]} 36. Ke3 {[%emt 0:00:04]} Nc2+ {[%emt 0:00:57]} 37. Ke4 {[%emt 0:00:04]} Kb5 {[%emt 0:00:18]} 38. Rd8 {[%emt 0:01:11]} Na3 {[%emt 0:00:44]} 39. Rb8+ {[%emt 0:00:40]} Kc6 {[%emt 0:00:14]} 40. Be3 {[%emt 0:00:28]} Rb2 {[%emt 0:00:48]} 41. a6 {[%emt 0:31:22]} 1-0

[Event "Germany Countries-chT Youth 2022"]
[Site "Wiesbaden"]
[Date "2022.10.03"]
[Round "5"]
[White "Laux, Dominik"]
[Black "Heinrich, John"]
[Result "1/2-1/2"]
[ECO "B90"]
[WhiteElo "2248"]
[BlackElo "2139"]
[Annotator "TA"]
[PlyCount "69"]
[EventDate "2022.09.28"]
[EventType "team-tourn"]
[EventRounds "7"]
[EventCountry "GER"]
[SourceTitle "playchess.com"]
[Source "ChessBase"]
[SourceQuality "1"]
[TimeControl "40/5400+30:1800+30"]

{[%evp 14,69,24,16,29,25,25,29,19,27,41,48,41,26,48,0,0,0,0,0,0,0,2,0,0,0,22,0,0,0,0,-30,-10,-16,-12,-25,-21,-19,0,0,1,3,5,2,2,0,0,-16,0,-17,0,0,0,0,0,0,0,0]} 1. e4 {[%emt 0:00:24]} c5 {[%emt 0:00:11]} 2. Nf3 {[%emt 0:00:08]} d6 {[%emt 0:00:08]} 3. d4 {[%emt 0:00:43]} cxd4 {[%emt 0:00:11]} 4. Nxd4 {[%emt 0:00:02]} Nf6 {[%emt 0:00:26]} 5. Nc3 {[%emt 0:00:16]} a6 {[%emt 0:00:16]} 6. Bd3 {[%emt 0:01:01]} Nc6 {[%emt 0:01:21]} 7. Nxc6 {[%emt 0:02:14]} bxc6 {[%emt 0:00:07]} 8. O-O {[%emt 0:01:31]} g6 {[%emt 0:00:58] B90: Sicilian Najdorf: Unusual White 6th moves, 6 Be3 Ng4 and 6 Be3 e5.} 9. Na4 {[%emt 0:09:53]} Bg7 {[%emt 0:10:33]} 10. Qe1 {[%emt 0:04:57]} O-O {[%emt 0:07:58] White has an edge.} 11. Bd2 {[%emt 0:06:24]} Nd7 {[%emt 0:19:55]} 12. Ba5 {[%emt 0:01:24]} Qe8 {[%emt 0:01:17] [#]} 13. f4 $146 {[%emt 0:09:15]} ({Predecessor:} 13. Rd1 c5 14. b3 Bb7 15. f4 Bc6 16. Nc3 Ra7 17. Rd2 Qa8 18. Re2 e6 19. Nd1 {0-1 (33) Muranyi,K (2400)-Le Quang,K (2315) Budapest 2006}) 13... c5 {[%emt 0:05:31][%cal Od7e5]} 14. Kh1 {[%emt 0:07:03]} (14. Bc3 $14 {deserves consideration.}) 14... Ne5 $11 {[%emt 0:12:06]} 15. fxe5 {[%emt 0:04:51] [#] Strongly threatening Nb6.} Qxa4 {[%emt 0:00:34]} 16. exd6 {[%emt 0:01:14]} exd6 {[%emt 0:01:25]} 17. Bc3 {[%emt 0:01:14]} Be6 {[%emt 0:02:56]} 18. Bxg7 {[%emt 0:03:32]} Kxg7 {[%emt 0:00:33]} 19. Qc3+ {[%emt 0:00:59]} f6 {[%emt 0:02:26]} 20. Rad1 {[%emt 0:04:56]} (20. b3 $5 {[%cal Rb3a4]} Qb4 21. Qe1 $11) 20... Qb4 {[%emt 0:06:20]} 21. Qxb4 {[%emt 0:04:01]} cxb4 {[%emt 0:00:07]} 22. Be2 {[%emt 0:04:00]} Rfd8 {[%emt 0:00:35]} 23. Rd4 {[%emt 0:03:57]} a5 {[%emt 0:01:24]} 24. Ra1 {[%emt 0:06:41]} Rac8 {[%emt 0:01:37]} 25. Bd3 {[%emt 0:00:57] The position is equal.} f5 {[%emt 0:06:07]} 26. a3 {[%emt 0:04:29]} bxa3 {[%emt 0:03:03]} 27. Rxa3 {[%emt 0:00:17]} Rc5 {[%emt 0:00:16]} 28. h3 {[%emt 0:03:53]} Kf6 {[%emt 0:03:32]} 29. Rda4 {[%emt 0:01:46]} Rb8 {[%emt 0:01:31]} 30. b3 {[%emt 0:04:02]} fxe4 {[%emt 0:01:40]} 31. Bxe4 {[%emt 0:00:02]} Bf5 {[%emt 0:04:45]} 32. Bxf5 {[%emt 0:00:41]} gxf5 {[%emt 0:00:15]} 33. c4 {[%emt 0:02:52]} Re5 {[%emt 0:03:29]} 34. Kg1 {[%emt 0:03:27]} Re3 {[%emt 0:00:30]} 35. Rxa5 {[%emt 0:00:45] Weighted Error Value: White=0.06 (flawless) /Black=0.06 (flawless)} 1/2-1/2

[Event "Germany Countries-chT Youth 2022"]
[Site "Wiesbaden"]
[Date "2022.10.03"]
[Round "5"]
[White "von Mettenheim, Johannes"]
[Black "Schneider, Jana"]
[Result "0-1"]
[ECO "A40"]
[WhiteElo "2231"]
[BlackElo "2323"]
[Annotator "RC"]
[PlyCount "54"]
[EventDate "2022.09.28"]
[EventType "team-tourn"]
[EventRounds "7"]
[EventCountry "GER"]
[SourceTitle "playchess.com"]
[Source "ChessBase"]
[SourceQuality "1"]
[TimeControl "40/5400+30:1800+30"]

1. d4 {[%emt 0:00:02]} Nf6 {[%emt 0:00:11]} 2. c4 {[%emt 0:00:09]} e6 {[%emt 0:00:05]} 3. g3 {[%emt 0:00:14]} d5 {[%emt 0:00:19]} 4. Nf3 {[%emt 0:00:13]} Bb4+ {[%emt 0:00:14]} 5. Bd2 {[%emt 0:00:11]} Bd6 {[%emt 0:00:16]} 6. Bg2 {[%emt 0:00:24]} O-O {[%emt 0:00:23]} 7. O-O {[%emt 0:00:31]} c6 {[%emt 0:00:15]} 8. Qc2 {[%emt 0:00:10]} Ne4 {[%emt 0:00:33]} 9. Nc3 {[%emt 0:01:11]} f5 {[%emt 0:00:30]} 10. Bf4 {[%emt 0:00:07]} Bxf4 {[%emt 0:04:58]} 11. gxf4 {[%emt 0:00:19]} Rf6 {[%emt 0:08:39]} 12. e3 {[%emt 0:09:18]} Rh6 {[%emt 0:04:06]} 13. b4 {[%emt 0:01:44]} Bd7 {[%emt 0:03:01]} 14. h3 {[%emt 0:19:09]} Be8 {[%emt 0:03:31]} 15. Kh2 {[%emt 0:01:11]} Nd7 {[%emt 0:06:50]} 16. Ne5 {[%emt 0:03:04]} Nxe5 {[%emt 0:09:34]} 17. fxe5 {[%emt 0:00:46]} Qh4 {[%emt 0:01:50]} 18. Nxe4 {[%emt 0:04:09]} fxe4 {[%emt 0:09:21]} 19. cxd5 {[%emt 0:21:24]} cxd5 {[%emt 0:01:52]} 20. Qc7 {[%emt 0:18:06]} Bh5 {[%emt 0:10:18]} 21. Rac1 {[%emt 0:04:37]} Rf8 {[%emt 0:00:50]} 22. Qxb7 {[%emt 0:04:39]} Be2 {[%emt 0:00:52]} 23. Rc7 {[%emt 0:01:13]} Rg6 {[%emt 0:13:19]} 24. Rg1 {[%emt 0:00:10]} h6 {[%emt 0:01:02]} 25. Rc8 {[%emt 0:03:39]} Rxc8 {[%emt 0:00:07]} 26. Qxc8+ {[%emt 0:00:10]} Kh7 {[%emt 0:00:03]} 27. Qf8 {[%emt 0:00:27]} Bf3 {[%emt 0:00:13]} 0-1

[Event "Germany Countries-chT Youth 2022"]
[Site "Wiesbaden"]
[Date "2022.10.03"]
[Round "5"]
[White "Bornholdt, Joa Max"]
[Black "Schmider, Niklas"]
[Result "1/2-1/2"]
[ECO "D43"]
[WhiteElo "2196"]
[BlackElo "2407"]
[Annotator "RC"]
[PlyCount "101"]
[EventDate "2022.09.28"]
[EventType "team-tourn"]
[EventRounds "7"]
[EventCountry "GER"]
[SourceTitle "playchess.com"]
[Source "ChessBase"]
[SourceQuality "1"]
[TimeControl "40/5400+30:1800+30"]

1. Nf3 {[%emt 0:00:15]} d5 {[%emt 0:00:17]} 2. d4 {[%emt 0:00:07]} Nf6 {[%emt 0:00:07]} 3. c4 {[%emt 0:00:10]} e6 {[%emt 0:00:22]} 4. Nc3 {[%emt 0:00:18]} c6 {[%emt 0:00:40]} 5. Bg5 {[%emt 0:04:09]} h6 {[%emt 0:00:10]} 6. Bxf6 {[%emt 0:02:04]} Qxf6 {[%emt 0:00:14]} 7. e3 {[%emt 0:01:18]} Nd7 {[%emt 0:01:33]} 8. Bd3 {[%emt 0:02:51]} dxc4 {[%emt 0:00:44]} 9. Bxc4 {[%emt 0:00:42]} g6 {[%emt 0:00:32]} 10. O-O {[%emt 0:02:37]} Bg7 {[%emt 0:01:43]} 11. Rc1 {[%emt 0:12:23]} O-O {[%emt 0:02:02]} 12. b4 {[%emt 0:06:51]} Qe7 {[%emt 0:05:43]} 13. Qb3 {[%emt 0:02:47]} e5 {[%emt 0:05:48]} 14. dxe5 {[%emt 0:07:48]} Nxe5 {[%emt 0:01:56]} 15. Nxe5 {[%emt 0:00:13]} Qxe5 {[%emt 0:00:42]} 16. b5 {[%emt 0:01:10]} cxb5 {[%emt 0:13:29]} 17. Qxb5 {[%emt 0:01:39]} Qxb5 {[%emt 0:06:51]} 18. Nxb5 {[%emt 0:00:54]} Bd7 {[%emt 0:01:18]} 19. Rfd1 {[%emt 0:04:47]} Bc6 {[%emt 0:01:21]} 20. f3 {[%emt 0:03:35]} a6 {[%emt 0:09:47]} 21. Nd4 {[%emt 0:01:39]} Ba4 {[%emt 0:00:21]} 22. Nb3 {[%emt 0:05:39]} Rae8 {[%emt 0:08:30]} 23. Kf2 {[%emt 0:02:50]} Re7 {[%emt 0:04:36]} 24. Rd6 {[%emt 0:04:01]} Rc7 {[%emt 0:04:31]} 25. Bd5 {[%emt 0:13:04]} Rxc1 {[%emt 0:05:57]} 26. Nxc1 {[%emt 0:00:07]} Rc8 {[%emt 0:00:28]} 27. Bb3 {[%emt 0:04:29]} Bxb3 {[%emt 0:06:12]} 28. Nxb3 {[%emt 0:00:08]} Rc4 {[%emt 0:07:12]} 29. f4 {[%emt 0:06:52]} Ra4 {[%emt 0:01:24]} 30. Rd2 {[%emt 0:07:05]} b5 {[%emt 0:01:51]} 31. Kf3 {[%emt 0:00:29]} Ra3 {[%emt 0:01:37]} 32. Ke4 {[%emt 0:01:12]} a5 {[%emt 0:01:23]} 33. Nd4 {[%emt 0:00:33]} f5+ {[%emt 0:05:23]} 34. Kd5 {[%emt 0:00:10]} b4 {[%emt 0:00:12]} 35. e4 {[%emt 0:02:20]} fxe4 {[%emt 0:01:30]} 36. Kxe4 {[%emt 0:00:02]} Rc3 {[%emt 0:00:22]} 37. Ne6 {[%emt 0:00:57]} Bf6 {[%emt 0:01:18]} 38. f5 {[%emt 0:00:09]} g5 {[%emt 0:00:22]} 39. Kd5 {[%emt 0:00:33]} a4 {[%emt 0:00:42]} 40. Nc5 {[%emt 0:00:59]} b3 {[%emt 0:00:44]} 41. axb3 {[%emt 0:06:00]} axb3 {[%emt 0:03:22]} 42. Ne4 {[%emt 0:12:16]} Rc2 {[%emt 0:00:18]} 43. Ke6 {[%emt 0:00:22]} Rc6+ {[%emt 0:06:42]} 44. Kd5 {[%emt 0:00:19]} Rb6 {[%emt 0:06:10]} 45. Nxf6+ {[%emt 0:00:59]} Rxf6 {[%emt 0:00:20]} 46. Kc4 {[%emt 0:06:08]} Rxf5 {[%emt 0:09:44]} 47. Kxb3 {[%emt 0:00:10]} Kg7 {[%emt 0:00:05]} 48. Kc3 {[%emt 0:00:12]} g4 {[%emt 0:00:32]} 49. Kd4 {[%emt 0:00:40]} Rf1 {[%emt 0:00:27]} 50. Ke3 {[%emt 0:01:22]} Kg6 {[%emt 0:03:08]} 51. Ke4 1/2-1/2

[Event "Germany Countries-chT Youth 2022"]
[Site "Wiesbaden"]
[Date "2022.10.03"]
[Round "5"]
[White "Post, Hugo"]
[Black "Waffenschmidt, Lars"]
[Result "0-1"]
[ECO "C95"]
[WhiteElo "2176"]
[BlackElo "2302"]
[Annotator "RC"]
[PlyCount "104"]
[EventDate "2022.09.28"]
[EventType "team-tourn"]
[EventRounds "7"]
[EventCountry "GER"]
[SourceTitle "playchess.com"]
[Source "ChessBase"]
[SourceQuality "1"]
[TimeControl "40/5400+30:1800+30"]

1. e4 {[%emt 0:00:03]} e5 {[%emt 0:00:08]} 2. Nf3 {[%emt 0:00:04]} Nc6 {[%emt 0:00:06]} 3. Bb5 {[%emt 0:00:03]} a6 {[%emt 0:00:11]} 4. Ba4 {[%emt 0:00:06]} Nf6 {[%emt 0:00:10]} 5. O-O {[%emt 0:00:09]} Be7 {[%emt 0:00:08]} 6. Re1 {[%emt 0:00:20]} b5 {[%emt 0:00:11]} 7. Bb3 {[%emt 0:00:04]} d6 {[%emt 0:00:07]} 8. c3 {[%emt 0:00:18]} O-O {[%emt 0:00:11]} 9. h3 {[%emt 0:00:07]} Nb8 {[%emt 0:00:23]} 10. d4 {[%emt 0:00:09]} Nbd7 {[%emt 0:00:12]} 11. c4 {[%emt 0:00:07]} c6 {[%emt 0:00:08]} 12. Nc3 {[%emt 0:00:06]} Qc7 {[%emt 0:00:09]} 13. cxb5 {[%emt 0:00:14]} axb5 {[%emt 0:00:11]} 14. Qc2 {[%emt 0:00:03]} Ba6 {[%emt 0:00:18]} 15. a3 {[%emt 0:02:43]} Qb7 {[%emt 0:17:20]} 16. Be3 {[%emt 0:06:59]} exd4 {[%emt 0:11:03]} 17. Nxd4 {[%emt 0:04:01]} Rfe8 {[%emt 0:04:49]} 18. Nf5 {[%emt 0:05:00]} Bf8 {[%emt 0:02:11]} 19. Rad1 {[%emt 0:00:40]} Rab8 {[%emt 0:14:48]} 20. Rxd6 {[%emt 0:21:04]} c5 {[%emt 0:09:56]} 21. Bd5 {[%emt 0:03:28]} Nxd5 {[%emt 0:00:36]} 22. Nxd5 {[%emt 0:07:05]} Re6 {[%emt 0:05:41]} 23. Bf4 {[%emt 0:01:31]} Bxd6 {[%emt 0:02:33]} 24. Nxd6 {[%emt 0:00:07]} Qc6 {[%emt 0:01:42]} 25. Qc3 {[%emt 0:18:24]} Nf6 {[%emt 0:06:01]} 26. Nb4 {[%emt 0:05:07]} Qb6 {[%emt 0:01:47]} 27. Nxa6 {[%emt 0:00:26]} Qxa6 {[%emt 0:00:17]} 28. Qxc5 {[%emt 0:00:21]} Rd8 {[%emt 0:02:41]} 29. Nxb5 {[%emt 0:16:25]} Nxe4 {[%emt 0:01:56]} 30. Qc7 {[%emt 0:01:10]} Rc8 {[%emt 0:02:16]} 31. Qd7 {[%emt 0:00:04]} Nc5 {[%emt 0:05:21]} 32. Rxe6 {[%emt 0:00:21]} fxe6 {[%emt 0:00:08]} 33. Nc7 {[%emt 0:00:59]} Nxd7 {[%emt 0:00:34]} 34. Nxa6 {[%emt 0:00:02]} Rc2 {[%emt 0:00:13]} 35. b4 {[%emt 0:01:45]} e5 {[%emt 0:09:09]} 36. Be3 {[%emt 0:00:23]} Ra2 {[%emt 0:01:20]} 37. Nc5 {[%emt 0:07:02]} Nxc5 {[%emt 0:00:28]} 38. bxc5 {[%emt 0:01:33]} Rxa3 {[%emt 0:00:11]} 39. Kh2 {[%emt 0:00:15]} Kf7 {[%emt 0:01:11]} 40. Kg3 {[%emt 0:00:04]} Kf6 {[%emt 0:02:37]} 41. Kf3 {[%emt 0:06:40]} Kf5 {[%emt 0:00:59]} 42. Ke2 {[%emt 0:01:09]} Ke4 {[%emt 0:00:59]} 43. Kd2 {[%emt 0:01:02]} Ra2+ {[%emt 0:11:43]} 44. Kc3 {[%emt 0:00:10]} Kd5 {[%emt 0:00:52]} 45. Kb3 {[%emt 0:07:52]} Ra1 {[%emt 0:00:52]} 46. Kc3 {[%emt 0:02:52]} Rh1 {[%emt 0:00:49]} 47. Kb4 {[%emt 0:06:31]} Kc6 {[%emt 0:01:29]} 48. Kc4 {[%emt 0:00:51]} Rh2 {[%emt 0:00:50]} 49. Kd3 {[%emt 0:00:25]} Rxg2 {[%emt 0:03:33]} 50. Ke4 {[%emt 0:00:05]} Rh2 {[%emt 0:00:22]} 51. Kxe5 {[%emt 0:00:27]} Rxh3 {[%emt 0:00:11]} 52. Ke6 {[%emt 0:01:26]} Rf3 {[%emt 0:01:05]} 0-1

[Event "Germany Countries-chT Youth 2022"]
[Site "Wiesbaden"]
[Date "2022.10.03"]
[Round "5"]
[White "Jeschke, Jan"]
[Black "Färber, David"]
[Result "0-1"]
[ECO "B48"]
[WhiteElo "2146"]
[BlackElo "2354"]
[Annotator "RC"]
[PlyCount "118"]
[EventDate "2022.09.28"]
[EventType "team-tourn"]
[EventRounds "7"]
[EventCountry "GER"]
[SourceTitle "playchess.com"]
[Source "ChessBase"]
[SourceQuality "1"]
[TimeControl "40/5400+30:1800+30"]

1. e4 {[%emt 0:00:05]} c5 {[%emt 0:00:06]} 2. Nf3 {[%emt 0:00:19]} Nc6 {[%emt 0:00:51]} 3. d4 {[%emt 0:00:24]} cxd4 {[%emt 0:00:10]} 4. Nxd4 {[%emt 0:00:35]} e6 {[%emt 0:00:50]} 5. Nc3 {[%emt 0:01:06]} Qc7 {[%emt 0:00:23]} 6. Be3 {[%emt 0:00:53]} a6 {[%emt 0:00:10]} 7. a3 {[%emt 0:01:07]} b5 {[%emt 0:04:32]} 8. Nxc6 {[%emt 0:05:19]} dxc6 {[%emt 0:01:34]} 9. f4 {[%emt 0:09:55]} Bb7 {[%emt 0:02:47]} 10. Qf3 {[%emt 0:02:18]} Nf6 {[%emt 0:03:35]} 11. g4 {[%emt 0:05:00]} O-O-O {[%emt 0:24:01]} 12. g5 {[%emt 0:07:45]} Nd7 {[%emt 0:00:50]} 13. Qf2 {[%emt 0:04:29]} h6 {[%emt 0:03:05]} 14. g6 {[%emt 0:02:40]} fxg6 {[%emt 0:11:51]} 15. O-O-O {[%emt 0:02:59]} Nf6 {[%emt 0:20:13]} 16. Bh3 {[%emt 0:05:02]} Rxd1+ {[%emt 0:00:30]} 17. Rxd1 {[%emt 0:00:08]} Qf7 {[%emt 0:00:44]} 18. f5 {[%emt 0:22:53]} gxf5 {[%emt 0:04:58]} 19. Qf4 {[%emt 0:11:11]} Qc7 {[%emt 0:06:12]} 20. Bxf5 {[%emt 0:05:48]} exf5 {[%emt 0:11:00]} 21. Qxf5+ {[%emt 0:00:06]} Nd7 {[%emt 0:00:03]} 22. Bf4 {[%emt 0:03:04]} g6 {[%emt 0:00:09]} 23. Rxd7 {[%emt 0:04:02]} Qxd7 {[%emt 0:01:08]} 24. Qe5 {[%emt 0:00:05]} Qd6 {[%emt 0:01:41]} 25. Qe8+ {[%emt 0:01:28]} Qd8 {[%emt 0:00:06]} 26. Qe6+ {[%emt 0:00:17]} Qd7 {[%emt 0:00:04]} 27. Qe5 {[%emt 0:00:05]} Kd8 {[%emt 0:00:41]} 28. Qxh8 {[%emt 0:02:21]} Qg7 {[%emt 0:00:08]} 29. Qxg7 {[%emt 0:02:33]} Bxg7 {[%emt 0:00:01]} 30. Kd2 {[%emt 0:00:27]} Kd7 {[%emt 0:00:28]} 31. Kd3 {[%emt 0:00:52]} c5 {[%emt 0:00:44]} 32. e5 {[%emt 0:00:41]} Ke6 {[%emt 0:01:27]} 33. Ne4 {[%emt 0:00:13]} c4+ {[%emt 0:00:28]} 34. Kd4 {[%emt 0:00:19]} Kf5 {[%emt 0:00:40]} 35. Nc5 {[%emt 0:00:50]} Bc6 {[%emt 0:01:10]} 36. Bg3 {[%emt 0:00:09]} a5 {[%emt 0:00:26]} 37. b3 {[%emt 0:00:43]} cxb3 {[%emt 0:00:28]} 38. cxb3 {[%emt 0:00:39]} g5 {[%emt 0:00:34]} 39. Nd3 {[%emt 0:00:28]} Bf8 {[%emt 0:00:34]} 40. b4 {[%emt 0:00:34]} axb4 {[%emt 0:00:29]} 41. axb4 {[%emt 0:01:16]} h5 {[%emt 0:01:15]} 42. Be1 {[%emt 0:09:33]} h4 {[%emt 0:06:35]} 43. Ke3 {[%emt 0:03:38]} Be7 {[%emt 0:04:58]} 44. Bd2 {[%emt 0:07:04]} Bd8 {[%emt 0:09:42]} 45. Bc3 {[%emt 0:09:59]} Be7 {[%emt 0:03:27]} 46. Bd2 {[%emt 0:00:11]} g4 {[%emt 0:00:11]} 47. Kd4 {[%emt 0:00:14]} Be4 {[%emt 0:03:22]} 48. Nf2 {[%emt 0:00:53]} Bf3 {[%emt 0:00:28]} 49. Nd3 {[%emt 0:00:31]} Be2 {[%emt 0:00:47]} 50. Nf4 {[%emt 0:01:14]} Bf3 {[%emt 0:03:46]} 51. Nd3 {[%emt 0:00:05]} g3 {[%emt 0:00:26]} 52. hxg3 {[%emt 0:00:51]} h3 {[%emt 0:00:18]} 53. g4+ {[%emt 0:01:06]} Kxg4 {[%emt 0:01:10]} 54. Bf4 {[%emt 0:00:18]} Be2 {[%emt 0:00:28]} 55. Bh2 {[%emt 0:00:41]} Bxd3 {[%emt 0:00:38]} 56. Kxd3 {[%emt 0:00:02]} Kf3 {[%emt 0:00:10]} 57. e6 {[%emt 0:00:54]} Kg2 {[%emt 0:00:15]} 58. Bf4 {[%emt 0:00:32]} Bxb4 {[%emt 0:00:22]} 59. Bd2 {[%emt 0:00:35]} Be7 {[%emt 0:00:14]} 0-1

[Event "Germany Countries-chT Youth 2022"]
[Site "Wiesbaden"]
[Date "2022.10.03"]
[Round "5"]
[White "Geltz, Noah"]
[Black "Pikalow, Michael"]
[Result "1/2-1/2"]
[ECO "B52"]
[WhiteElo "2142"]
[BlackElo "2037"]
[Annotator "TA"]
[PlyCount "84"]
[EventDate "2022.09.28"]
[EventType "team-tourn"]
[EventRounds "7"]
[EventCountry "GER"]
[TimeControl "40/5400+30:1800+30"]

{[%evp 16,84,11,15,20,22,31,22,27,29,33,16,31,28,29,31,39,30,31,18,21,14,45,9,11,8,12,4,4,9,4,4,26,26,26,-12,-6,-26,20,-7,0,-27,-16,-38,-39,-38,-10,-18,0,0,34,19,8,-6,14,-21,0,0,28,29,45,20,122,0,0,0,0,0,0,0,0]} 1. e4 {[%emt 0:00:06]} c5 {[%emt 0:00:04]} 2. Nf3 {[%emt 0:03:03]} d6 {[%emt 0:00:06]} 3. Bb5+ {[%emt 0:01:20]} Bd7 {[%emt 0:00:31]} 4. c4 {[%emt 0:00:13]} Nf6 {[%emt 0:00:44]} 5. Nc3 {[%emt 0:00:31]} g6 {[%emt 0:00:04]} 6. Bxd7+ {[%emt 0:02:20]} Qxd7 {[%emt 0:00:09]} 7. d4 {[%emt 0:01:34]} cxd4 {[%emt 0:00:08]} 8. Qxd4 {[%emt 0:01:24]} Bg7 {[%emt 0:07:01]} 9. O-O {[%emt 0:01:06]} O-O {[%emt 0:00:04] B52: Sicilian: Moscow Variation with 3...Bd7.} 10. Bg5 {[%emt 0:00:17]} h6 {[%emt 0:09:11]} 11. Bd2 {[%emt 0:00:19]} Nc6 {[%emt 0:02:14]} 12. Qd3 {[%emt 0:00:32]} Rac8 {[%emt 0:06:27] [#]} 13. Rac1 $146 {[%emt 0:05:04]} ({Predecessor:} 13. b3 Rfd8 14. Rad1 Ng4 15. Qe2 Qe8 16. h3 {½-½ (16) Andersen,M (2582)-Warmerdam,M (2599) Reykjavik 2022}) 13... Qd8 {[%emt 0:06:22]} 14. b3 {[%emt 0:26:35]} Nd7 {[%emt 0:01:28]} 15. Rfd1 {[%emt 0:08:08]} Nc5 {[%emt 0:10:10]} 16. Qe3 {[%emt 0:01:52]} a6 {[%emt 0:04:27]} 17. Nd5 {[%emt 0:04:18]} e6 {[%emt 0:07:44]} 18. Nf4 {[%emt 0:03:45]} a5 {[%emt 0:06:11]} 19. Nd3 {[%emt 0:03:55]} Qe7 {[%emt 0:04:58]} 20. Bc3 {[%emt 0:02:31]} e5 {[%emt 0:09:04]} 21. Nxc5 {[%emt 0:02:07]} dxc5 {[%emt 0:00:02]} 22. Rd5 {[%emt 0:00:22]} b6 {[%emt 0:00:53]} 23. Ne1 {[%emt 0:06:18]} Rcd8 {[%emt 0:02:38]} 24. Nd3 {[%emt 0:02:24]} Rfe8 {[%emt 0:07:57]} 25. Rxd8 {[%emt 0:09:34]} Rxd8 {[%emt 0:00:50]} 26. Rd1 {[%emt 0:00:57][%cal Bc1d1,Bd1d2,Bd2e2][%mdl 32]} Rd7 {[%emt 0:01:50]} (26... a4 $142) 27. Rd2 {[%emt 0:01:29]} Qd8 {[%emt 0:01:46]} 28. Ne1 {[%emt 0:05:36]} Nd4 {[%emt 0:02:41]} 29. Bxd4 {[%emt 0:00:48]} exd4 {[%emt 0:03:44]} 30. Qf3 {[%emt 0:01:11]} h5 {[%emt 0:00:43][%cal Oa5a4]} 31. Nd3 {[%emt 0:00:34]} Bh6 {[%emt 0:01:29]} 32. Re2 {[%emt 0:00:19]} Qg5 {[%emt 0:01:25][%cal Oa5a4]} 33. h3 {[%emt 0:01:05]} (33. e5 {with more complications.} Re7 34. g3 Qg4 35. Kg2) 33... Re7 {[%emt 0:01:37]} 34. a4 {[%emt 0:00:45]} Re6 {[%emt 0:00:49] [#] Hoping for ...Rf6.} 35. Kh2 {[%emt 0:01:15]} Qe7 {[%emt 0:00:48]} 36. e5 {[%emt 0:01:45]} Qe8 {[%emt 0:00:58]} 37. Qd5 {[%emt 0:01:23]} Bg7 {[%emt 0:00:58]} 38. f4 {[%emt 0:01:04]} Kh7 {[%emt 0:00:30] [#]} (38... h4 $1 $11 {keeps the balance.}) 39. f5 {[%emt 0:00:42] White is more active.} (39. g4 $1 $16) 39... gxf5 $11 {[%emt 0:00:21] The position is equal.} 40. Qf3 {[%emt 0:00:08]} Bxe5+ {[%emt 0:00:29]} 41. Nxe5 {[%emt 0:30:08]} Rxe5 {[%emt 0:30:07]} 42. Qxh5+ {[%emt 0:00:06]} Kg7 {Weighted Error Value: White=0.14 (very precise) /Black=0.17 (very precise)} 1/2-1/2